[Event "Titled Tuesday Blitz August 22 Early 2023"]
[White "Keleberda, Tymur"]
[Black "Llanos, Guillermo"]
[WhiteFideId "14174294"]
[BlackFideId "100358"]
[WhiteElo "2542"]
[BlackElo "2429"]
[Result "0-1"]
[Round "5"]
[TimeControl "180+1"]
[Date "2023.08.22"]
[WhiteClock "0:00:00"]
[BlackClock "0:01:10"]
[Board "123"]

1. e4 {[%clk 0:03:00]}  Nf6 {[%clk 0:02:59]} 2. e5 {[%clk 0:03:01]}  Nd5 {[%clk 0:02:58]} 3. c4 {[%clk 0:03:01]}  Nb6 {[%clk 0:02:58]} 4. d4 {[%clk 0:03:02]}  d6 {[%clk 0:02:58]} 5. exd6 {[%clk 0:03:03]}  cxd6 {[%clk 0:02:58]} 6. Be3 {[%clk 0:03:02]}  g6 {[%clk 0:02:58]} 7. Nc3 {[%clk 0:03:02]}  Bg7 {[%clk 0:02:58]} 8. b3 {[%clk 0:03:03]}  O-O {[%clk 0:02:58]} 9. Rc1 {[%clk 0:03:02]}  Bf5 {[%clk 0:02:58]} 10. g4 {[%clk 0:02:52]}  Bd7 {[%clk 0:02:57]} 11. Bg2 {[%clk 0:02:47]}  Nc6 {[%clk 0:02:56]} 12. d5 {[%clk 0:02:47]}  Ne5 {[%clk 0:02:54]} 13. h3 {[%clk 0:02:45]}  f5 {[%clk 0:02:52]} 14. f4 {[%clk 0:02:44]}  Nexc4 {[%clk 0:02:52]} 15. bxc4 {[%clk 0:02:42]}  Nxc4 {[%clk 0:02:52]} 16. Qe2 {[%clk 0:02:39]}  Nxe3 {[%clk 0:02:49]} 17. Qxe3 {[%clk 0:02:39]}  fxg4 {[%clk 0:02:49]} 18. Nge2 {[%clk 0:02:34]}  Qb6 {[%clk 0:02:17]} 19. Qxb6 {[%clk 0:02:26]}  axb6 {[%clk 0:02:16]} 20. hxg4 {[%clk 0:02:12]}  Bxg4 {[%clk 0:02:15]} 21. Bh3 {[%clk 0:02:12]}  Bxh3 {[%clk 0:02:07]} 22. Rxh3 {[%clk 0:02:12]}  Bxc3+ {[%clk 0:02:06]} 23. Rcxc3 {[%clk 0:02:07]}  Rxa2 {[%clk 0:02:05]} 24. Rc7 {[%clk 0:02:06]}  Rf7 {[%clk 0:01:52]} 25. Rh4 {[%clk 0:01:48]}  Ra1+ {[%clk 0:01:47]} 26. Kd2 {[%clk 0:01:44]}  Ra5 {[%clk 0:01:47]} 27. Nc3 {[%clk 0:01:40]}  Rc5 {[%clk 0:01:38]} 28. Rxb7 {[%clk 0:01:38]}  Rc4 {[%clk 0:01:38]} 29. Ne2 {[%clk 0:01:13]}  Rc5 {[%clk 0:01:36]} 30. Rb8+ {[%clk 0:01:13]}  Kg7 {[%clk 0:01:36]} 31. Nc3 {[%clk 0:01:02]}  Rc4 {[%clk 0:01:36]} 32. Rxb6 {[%clk 0:00:56]}  Rcxf4 {[%clk 0:01:34]} 33. Rxf4 {[%clk 0:00:57]}  Rxf4 {[%clk 0:01:34]} 34. Rb7 {[%clk 0:00:56]}  Rf7 {[%clk 0:01:34]} 35. Ke3 {[%clk 0:00:54]}  Kf6 {[%clk 0:01:33]} 36. Kf4 {[%clk 0:00:45]}  g5+ {[%clk 0:01:30]} 37. Kg4 {[%clk 0:00:45]}  Kg6 {[%clk 0:01:30]} 38. Ne2 {[%clk 0:00:38]}  h5+ {[%clk 0:01:30]} 39. Kg3 {[%clk 0:00:39]}  Kf5 {[%clk 0:01:28]} 40. Rb8 {[%clk 0:00:22]}  h4+ {[%clk 0:01:26]} 41. Kh3 {[%clk 0:00:21]}  Ke5 {[%clk 0:01:25]} 42. Rg8 {[%clk 0:00:17]}  Rf5 {[%clk 0:01:23]} 43. Nc3 {[%clk 0:00:12]}  Kd4 {[%clk 0:01:21]} 44. Kg4 {[%clk 0:00:10]}  Re5 {[%clk 0:01:21]} 45. Nb5+ {[%clk 0:00:08]}  Kxd5 {[%clk 0:01:20]} 46. Nc7+ {[%clk 0:00:08]}  Kc6 {[%clk 0:01:19]} 47. Ne8 {[%clk 0:00:05]}  d5 {[%clk 0:01:18]} 48. Ng7 {[%clk 0:00:05]}  d4 {[%clk 0:01:16]} 49. Rd8 {[%clk 0:00:03]}  Rd5 {[%clk 0:01:13]} 50. Rc8+ {[%clk 0:00:00]}  Kd7 {[%clk 0:01:10]} 0-1


[Site "https://www.chess.com"]

[Event "Titled Tuesday Blitz August 22 Early 2023"]
[White "Romero Ruscalleda, Josep"]
[Black "Sreyas Payyappat"]
[WhiteFideId "2231859"]
[BlackFideId "46674969"]
[WhiteElo "2421"]
[BlackElo "2525"]
[Result "0-1"]
[Round "5"]
[TimeControl "180+1"]
[Date "2023.08.22"]
[WhiteClock "0:00:00"]
[BlackClock "0:00:04"]
[Board "128"]

1. e4 {[%clk 0:03:00]}  c6 {[%clk 0:02:59]} 2. Nc3 {[%clk 0:03:00]}  d5 {[%clk 0:03:00]} 3. Nf3 {[%clk 0:03:00]}  dxe4 {[%clk 0:02:59]} 4. Nxe4 {[%clk 0:03:00]}  Nf6 {[%clk 0:02:59]} 5. Qe2 {[%clk 0:03:00]}  Nxe4 {[%clk 0:02:59]} 6. Qxe4 {[%clk 0:03:00]}  Bd7 {[%clk 0:02:59]} 7. Bc4 {[%clk 0:02:58]}  e6 {[%clk 0:02:57]} 8. d4 {[%clk 0:02:58]}  Bd6 {[%clk 0:02:55]} 9. O-O {[%clk 0:02:57]}  b5 {[%clk 0:02:54]} 10. Bd3 {[%clk 0:02:55]}  Na6 {[%clk 0:02:53]} 11. a3 {[%clk 0:02:53]}  Nc7 {[%clk 0:02:52]} 12. Ne5 {[%clk 0:02:49]}  Nd5 {[%clk 0:02:51]} 13. Bd2 {[%clk 0:02:39]}  Nf6 {[%clk 0:02:50]} 14. Qh4 {[%clk 0:02:37]}  h6 {[%clk 0:02:48]} 15. Rae1 {[%clk 0:02:32]}  Qc7 {[%clk 0:02:46]} 16. Bg5 {[%clk 0:02:25]}  Nd5 {[%clk 0:02:40]} 17. Bd2 {[%clk 0:02:12]}  Be7 {[%clk 0:02:26]} 18. Qh5 {[%clk 0:02:09]}  g6 {[%clk 0:02:10]} 19. Bxg6 {[%clk 0:01:52]}  fxg6 {[%clk 0:02:05]} 20. Qxg6+ {[%clk 0:01:50]}  Kd8 {[%clk 0:02:05]} 21. Nf7+ {[%clk 0:01:46]}  Kc8 {[%clk 0:02:04]} 22. Nxh8 {[%clk 0:01:45]}  Kb7 {[%clk 0:01:56]} 23. Nf7 {[%clk 0:01:44]}  Rf8 {[%clk 0:01:49]} 24. Ne5 {[%clk 0:01:43]}  Bc8 {[%clk 0:01:18]} 25. Bxh6 {[%clk 0:01:26]}  Rh8 {[%clk 0:01:04]} 26. Qg7 {[%clk 0:01:15]}  Re8 {[%clk 0:00:58]} 27. Bg5 {[%clk 0:01:05]}  Bxg5 {[%clk 0:00:54]} 28. Qxg5 {[%clk 0:01:05]}  Qh7 {[%clk 0:00:51]} 29. Qg6 {[%clk 0:01:01]}  Qh8 {[%clk 0:00:47]} 30. c4 {[%clk 0:00:45]}  bxc4 {[%clk 0:00:31]} 31. Nxc4 {[%clk 0:00:40]}  Rg8 {[%clk 0:00:24]} 32. Qf7+ {[%clk 0:00:36]}  Ka8 {[%clk 0:00:22]} 33. Re5 {[%clk 0:00:28]}  Rg7 {[%clk 0:00:19]} 34. Qf3 {[%clk 0:00:20]}  Qg8 {[%clk 0:00:17]} 35. Rfe1 {[%clk 0:00:17]}  c5 {[%clk 0:00:14]} 36. Nd6 {[%clk 0:00:13]}  Bd7 {[%clk 0:00:12]} 37. dxc5 {[%clk 0:00:12]}  Bc6 {[%clk 0:00:09]} 38. g3 {[%clk 0:00:06]}  Rg6 {[%clk 0:00:04]} 39. Rxe6 {[%clk 0:00:02]}  Rxe6 {[%clk 0:00:04]} 40. Rxe6 {[%clk 0:00:00]}  Ne7 {[%clk 0:00:04]} 0-1


[Site "https://www.chess.com"]

[Event "Titled Tuesday Blitz August 22 Early 2023"]
[White "Rom, Jasper"]
[Black "ArtemDyachuk"]
[WhiteFideId "2023733"]
[WhiteElo "2415"]
[BlackElo "2522"]
[Result "0-1"]
[Round "5"]
[TimeControl "180+1"]
[Date "2023.08.22"]
[WhiteClock "0:00:00"]
[BlackClock "0:00:16"]
[Board "130"]

1. e4 {[%clk 0:02:51]}  c6 {[%clk 0:02:59]} 2. Nc3 {[%clk 0:02:49]}  d5 {[%clk 0:02:59]} 3. Nf3 {[%clk 0:02:48]}  dxe4 {[%clk 0:02:58]} 4. Nxe4 {[%clk 0:02:48]}  Nd7 {[%clk 0:02:59]} 5. Bc4 {[%clk 0:02:45]}  Ngf6 {[%clk 0:02:59]} 6. Neg5 {[%clk 0:02:45]}  e6 {[%clk 0:02:58]} 7. Qe2 {[%clk 0:02:45]}  Nb6 {[%clk 0:02:54]} 8. Bb3 {[%clk 0:02:44]}  Nfd5 {[%clk 0:02:50]} 9. d4 {[%clk 0:02:40]}  Bb4+ {[%clk 0:02:34]} 10. Kf1 {[%clk 0:02:37]}  Bd6 {[%clk 0:02:21]} 11. c4 {[%clk 0:02:14]}  Nf4 {[%clk 0:02:21]} 12. Qe4 {[%clk 0:02:11]}  f5 {[%clk 0:02:03]} 13. Qe3 {[%clk 0:02:03]}  h6 {[%clk 0:01:58]} 14. Nxe6 {[%clk 0:01:49]}  Bxe6 {[%clk 0:01:44]} 15. c5 {[%clk 0:01:49]}  Qd7 {[%clk 0:01:34]} 16. cxd6 {[%clk 0:01:31]}  Nfd5 {[%clk 0:01:34]} 17. Qe5 {[%clk 0:01:24]}  O-O-O {[%clk 0:01:31]} 18. a4 {[%clk 0:01:17]}  Rhe8 {[%clk 0:01:05]} 19. a5 {[%clk 0:01:15]}  Nc4 {[%clk 0:01:05]} 20. Bxc4 {[%clk 0:01:04]}  Ne3+ {[%clk 0:01:04]} 21. Bxe3 {[%clk 0:00:51]}  Bxc4+ {[%clk 0:01:03]} 22. Kg1 {[%clk 0:00:50]}  Rxe5 {[%clk 0:01:03]} 23. dxe5 {[%clk 0:00:50]}  Bd5 {[%clk 0:01:01]} 24. Bxa7 {[%clk 0:00:36]}  f4 {[%clk 0:01:01]} 25. Nd4 {[%clk 0:00:24]}  f3 {[%clk 0:00:42]} 26. gxf3 {[%clk 0:00:08]}  Rf8 {[%clk 0:00:40]} 27. Ra3 {[%clk 0:00:03]}  Qf7 {[%clk 0:00:23]} 28. Bc5 {[%clk 0:00:02]}  Qg6+ {[%clk 0:00:21]} 29. Kf1 {[%clk 0:00:02]}  Bc4+ {[%clk 0:00:21]} 30. Ke1 {[%clk 0:00:01]}  Qb1+ {[%clk 0:00:21]} 31. Kd2 {[%clk 0:00:01]}  Qxh1 {[%clk 0:00:19]} 32. d7+ {[%clk 0:00:02]}  Kxd7 {[%clk 0:00:18]} 33. Bxf8 {[%clk 0:00:03]}  Qb1 {[%clk 0:00:16]} 34. Kc3 {[%clk 0:00:02]}  Qd3+ {[%clk 0:00:16]} 35. Kb4 {[%clk 0:00:00]}  Qxd4 {[%clk 0:00:16]} 0-1


[Site "https://www.chess.com"]

[Event "Titled Tuesday Blitz August 22 Early 2023"]
[White "Melikhov, Evgeny V."]
[Black "Karamsetty, Jeevan"]
[WhiteFideId "4122046"]
[BlackFideId "2025337"]
[WhiteElo "2414"]
[BlackElo "2522"]
[Result "0-1"]
[Round "5"]
[TimeControl "180+1"]
[Date "2023.08.22"]
[WhiteClock "0:00:09"]
[BlackClock "0:00:11"]
[Board "131"]

1. d4 {[%clk 0:03:00]}  g6 {[%clk 0:02:56]} 2. c4 {[%clk 0:02:58]}  Bg7 {[%clk 0:02:56]} 3. Nc3 {[%clk 0:02:57]}  d6 {[%clk 0:02:57]} 4. e4 {[%clk 0:02:57]}  e5 {[%clk 0:02:58]} 5. d5 {[%clk 0:02:54]}  a5 {[%clk 0:02:55]} 6. Bd3 {[%clk 0:02:50]}  Na6 {[%clk 0:02:53]} 7. Nge2 {[%clk 0:02:50]}  Qh4 {[%clk 0:02:50]} 8. Be3 {[%clk 0:02:40]}  Bh6 {[%clk 0:02:33]} 9. Qd2 {[%clk 0:02:40]}  Bxe3 {[%clk 0:02:30]} 10. Qxe3 {[%clk 0:02:40]}  Nc5 {[%clk 0:02:29]} 11. Bc2 {[%clk 0:02:37]}  f5 {[%clk 0:02:22]} 12. exf5 {[%clk 0:01:54]}  gxf5 {[%clk 0:02:19]} 13. O-O-O {[%clk 0:01:48]}  Qxc4 {[%clk 0:02:11]} 14. f4 {[%clk 0:01:39]}  e4 {[%clk 0:02:04]} 15. Rd4 {[%clk 0:01:28]}  Qa6 {[%clk 0:02:02]} 16. Nxe4 {[%clk 0:01:26]}  fxe4 {[%clk 0:01:58]} 17. Bxe4 {[%clk 0:01:26]}  Ne7 {[%clk 0:01:30]} 18. Bc2 {[%clk 0:01:19]}  Bg4 {[%clk 0:01:12]} 19. Nc3 {[%clk 0:01:17]}  Kd7 {[%clk 0:00:55]} 20. Re1 {[%clk 0:00:30]}  Rae8 {[%clk 0:00:53]} 21. Qg3 {[%clk 0:00:24]}  Rhg8 {[%clk 0:00:40]} 22. Rxe7+ {[%clk 0:00:15]}  Rxe7 {[%clk 0:00:36]} 23. h3 {[%clk 0:00:14]}  Qf1+ {[%clk 0:00:31]} 24. Nd1 {[%clk 0:00:11]}  Bxd1 {[%clk 0:00:24]} 25. Qxg8 {[%clk 0:00:11]}  Bxc2+ {[%clk 0:00:20]} 26. Kxc2 {[%clk 0:00:10]}  Qf2+ {[%clk 0:00:19]} 27. Rd2 {[%clk 0:00:10]}  Qxf4 {[%clk 0:00:18]} 28. Qg4+ {[%clk 0:00:08]}  Qxg4 {[%clk 0:00:18]} 29. hxg4 {[%clk 0:00:09]}  Re4 {[%clk 0:00:18]} 30. a3 {[%clk 0:00:08]}  Rxg4 {[%clk 0:00:18]} 31. Rf2 {[%clk 0:00:09]}  Rg7 {[%clk 0:00:17]} 32. b4 {[%clk 0:00:08]}  axb4 {[%clk 0:00:16]} 33. axb4 {[%clk 0:00:09]}  Ne4 {[%clk 0:00:16]} 34. Rf4 {[%clk 0:00:09]}  Ng5 {[%clk 0:00:16]} 35. Kd3 {[%clk 0:00:09]}  h6 {[%clk 0:00:16]} 36. Rf6 {[%clk 0:00:08]}  Nf7 {[%clk 0:00:15]} 37. b5 {[%clk 0:00:07]}  Ne5+ {[%clk 0:00:14]} 38. Ke4 {[%clk 0:00:06]}  Rg4+ {[%clk 0:00:14]} 39. Ke3 {[%clk 0:00:06]}  Rxg2 {[%clk 0:00:13]} 40. Rf8 {[%clk 0:00:05]}  Rg7 {[%clk 0:00:12]} 41. Rh8 {[%clk 0:00:05]}  Re7 {[%clk 0:00:12]} 42. Kd4 {[%clk 0:00:05]}  Nf3+ {[%clk 0:00:11]} 43. Kd3 {[%clk 0:00:05]}  Ne1+ {[%clk 0:00:07]} 44. Kd4 {[%clk 0:00:05]}  Nc2+ {[%clk 0:00:07]} 45. Kc3 {[%clk 0:00:06]}  Ne3 {[%clk 0:00:08]} 46. Kd4 {[%clk 0:00:06]}  Nf5+ {[%clk 0:00:08]} 47. Kd3 {[%clk 0:00:06]}  Rf7 {[%clk 0:00:09]} 48. b6 {[%clk 0:00:06]}  cxb6 {[%clk 0:00:08]} 49. Kc4 {[%clk 0:00:06]}  Ke7 {[%clk 0:00:08]} 50. Kb5 {[%clk 0:00:06]}  Kf6 {[%clk 0:00:09]} 51. Kxb6 {[%clk 0:00:07]}  Ke5 {[%clk 0:00:09]} 52. Re8+ {[%clk 0:00:06]}  Kxd5 {[%clk 0:00:10]} 53. Kb5 {[%clk 0:00:07]}  Nd4+ {[%clk 0:00:10]} 54. Kb4 {[%clk 0:00:07]}  Rh7 {[%clk 0:00:11]} 55. Kc3 {[%clk 0:00:07]}  h5 {[%clk 0:00:11]} 56. Kd3 {[%clk 0:00:07]}  h4 {[%clk 0:00:11]} 57. Re1 {[%clk 0:00:08]}  h3 {[%clk 0:00:11]} 58. Rh1 {[%clk 0:00:09]}  h2 {[%clk 0:00:12]} 59. Ke3 {[%clk 0:00:09]}  b5 {[%clk 0:00:12]} 60. Kf2 {[%clk 0:00:10]}  b4 {[%clk 0:00:12]} 61. Kg2 {[%clk 0:00:10]}  b3 {[%clk 0:00:13]} 62. Rb1 {[%clk 0:00:09]}  h1=Q+ {[%clk 0:00:11]} 0-1


[Site "https://www.chess.com"]

[Event "Titled Tuesday Blitz August 22 Early 2023"]
[White "Boraso, Alessio"]
[Black "Avazkhonov, Alikhon"]
[WhiteFideId "848077"]
[BlackFideId "14208504"]
[WhiteElo "2520"]
[BlackElo "2409"]
[Result "1-0"]
[Round "5"]
[TimeControl "180+1"]
[Date "2023.08.22"]
[WhiteClock "0:00:15"]
[BlackClock "0:00:02"]
[Board "132"]

1. b3 {[%clk 0:03:00]}  e5 {[%clk 0:01:35]} 2. Bb2 {[%clk 0:03:01]}  Nc6 {[%clk 0:01:35]} 3. e3 {[%clk 0:01:46]}  d5 {[%clk 0:01:36]} 4. Bb5 {[%clk 0:01:45]}  Bd6 {[%clk 0:01:36]} 5. Ne2 {[%clk 0:01:43]}  Nf6 {[%clk 0:01:36]} 6. d3 {[%clk 0:01:32]}  O-O {[%clk 0:01:35]} 7. Bxc6 {[%clk 0:01:32]}  bxc6 {[%clk 0:01:36]} 8. c4 {[%clk 0:01:33]}  Bf5 {[%clk 0:00:54]} 9. Nbc3 {[%clk 0:01:26]}  d4 {[%clk 0:00:45]} 10. exd4 {[%clk 0:01:24]}  exd4 {[%clk 0:00:46]} 11. Nb1 {[%clk 0:01:20]}  Re8 {[%clk 0:00:39]} 12. O-O {[%clk 0:01:18]}  Bxh2+ {[%clk 0:00:23]} 13. Kxh2 {[%clk 0:01:17]}  Ng4+ {[%clk 0:00:23]} 14. Kg3 {[%clk 0:01:18]}  Qd6+ {[%clk 0:00:18]} 15. Nf4 {[%clk 0:01:03]}  g5 {[%clk 0:00:18]} 16. Qf3 {[%clk 0:01:04]}  gxf4+ {[%clk 0:00:10]} 17. Qxf4 {[%clk 0:01:04]}  Qxf4+ {[%clk 0:00:10]} 18. Kxf4 {[%clk 0:01:05]}  Bxd3 {[%clk 0:00:10]} 19. Rd1 {[%clk 0:01:01]}  Re4+ {[%clk 0:00:10]} 20. Kg3 {[%clk 0:00:54]}  Bxb1 {[%clk 0:00:08]} 21. Raxb1 {[%clk 0:00:53]}  Nf6 {[%clk 0:00:05]} 22. Rxd4 {[%clk 0:00:52]}  Nh5+ {[%clk 0:00:06]} 23. Kf3 {[%clk 0:00:51]}  Rxd4 {[%clk 0:00:05]} 24. Bxd4 {[%clk 0:00:52]}  Rd8 {[%clk 0:00:04]} 25. Be3 {[%clk 0:00:49]}  Nf6 {[%clk 0:00:03]} 26. Bg5 {[%clk 0:00:47]}  Kg7 {[%clk 0:00:03]} 27. Re1 {[%clk 0:00:40]}  Rd3+ {[%clk 0:00:03]} 28. Re3 {[%clk 0:00:32]}  Rd2 {[%clk 0:00:04]} 29. Re2 {[%clk 0:00:19]}  Rd3+ {[%clk 0:00:04]} 30. Be3 {[%clk 0:00:16]}  Kg6 {[%clk 0:00:03]} 31. Rd2 {[%clk 0:00:16]}  Rxd2 {[%clk 0:00:03]} 32. Bxd2 {[%clk 0:00:17]}  Kf5 {[%clk 0:00:03]} 33. Ke3 {[%clk 0:00:13]}  Ng4+ {[%clk 0:00:03]} 34. Kf3 {[%clk 0:00:14]}  Ne5+ {[%clk 0:00:03]} 35. Ke3 {[%clk 0:00:13]}  Ng4+ {[%clk 0:00:03]} 36. Kf3 {[%clk 0:00:13]}  Ne5+ {[%clk 0:00:03]} 37. Ke2 {[%clk 0:00:13]}  Ke4 {[%clk 0:00:03]} 38. Bc3 {[%clk 0:00:13]}  Ng4 {[%clk 0:00:02]} 39. f3+ {[%clk 0:00:13]}  Kf5 {[%clk 0:00:02]} 40. fxg4+ {[%clk 0:00:14]}  Kxg4 {[%clk 0:00:03]} 41. Be1 {[%clk 0:00:14]}  Kf4 {[%clk 0:00:03]} 42. Kd3 {[%clk 0:00:14]}  Kg4 {[%clk 0:00:03]} 43. Bf2 {[%clk 0:00:15]}  Kf4 {[%clk 0:00:04]} 44. Bxa7 {[%clk 0:00:14]}  Kg3 {[%clk 0:00:05]} 45. Bb8 {[%clk 0:00:15]}  Kxg2 {[%clk 0:00:02]} 46. a4 {[%clk 0:00:15]} 1-0


[Site "https://www.chess.com"]

[Event "Titled Tuesday Blitz August 22 Early 2023"]
[White "Young_Catalan_Player09"]
[Black "Kovalevsky, Stanislav"]
[BlackFideId "13508598"]
[WhiteElo "2384"]
[BlackElo "2514"]
[Result "1-0"]
[Round "5"]
[TimeControl "180+1"]
[Date "2023.08.22"]
[WhiteClock "0:00:39"]
[BlackClock "0:00:11"]
[Board "138"]

1. Nf3 {[%clk 0:03:00]}  d6 {[%clk 0:02:59]} 2. c4 {[%clk 0:02:55]}  e5 {[%clk 0:03:00]} 3. Nc3 {[%clk 0:02:56]}  f5 {[%clk 0:03:00]} 4. d3 {[%clk 0:02:55]}  Nf6 {[%clk 0:03:00]} 5. g3 {[%clk 0:02:53]}  g6 {[%clk 0:03:00]} 6. Bg2 {[%clk 0:02:54]}  Bg7 {[%clk 0:03:01]} 7. O-O {[%clk 0:02:54]}  O-O {[%clk 0:03:01]} 8. Bg5 {[%clk 0:02:55]}  c6 {[%clk 0:03:01]} 9. Nd2 {[%clk 0:02:54]}  h6 {[%clk 0:03:00]} 10. Bxf6 {[%clk 0:02:55]}  Qxf6 {[%clk 0:02:58]} 11. Rb1 {[%clk 0:02:50]}  Na6 {[%clk 0:02:53]} 12. b4 {[%clk 0:02:50]}  Nc7 {[%clk 0:02:53]} 13. b5 {[%clk 0:02:49]}  e4 {[%clk 0:02:41]} 14. Rb3 {[%clk 0:02:32]}  cxb5 {[%clk 0:02:37]} 15. dxe4 {[%clk 0:02:24]}  bxc4 {[%clk 0:02:37]} 16. Nxc4 {[%clk 0:02:23]}  Be6 {[%clk 0:02:37]} 17. Nd5 {[%clk 0:02:10]}  Bxd5 {[%clk 0:02:29]} 18. exd5 {[%clk 0:02:10]}  b6 {[%clk 0:02:26]} 19. e3 {[%clk 0:02:10]}  Na6 {[%clk 0:02:23]} 20. Rb1 {[%clk 0:01:59]}  Nc5 {[%clk 0:02:22]} 21. a4 {[%clk 0:01:58]}  Rab8 {[%clk 0:02:19]} 22. Na3 {[%clk 0:01:48]}  a6 {[%clk 0:01:47]} 23. Nc2 {[%clk 0:01:38]}  Qc3 {[%clk 0:01:40]} 24. Nb4 {[%clk 0:01:31]}  Qa3 {[%clk 0:01:29]} 25. Nc6 {[%clk 0:01:31]}  Rb7 {[%clk 0:01:27]} 26. e4 {[%clk 0:01:13]}  Nxa4 {[%clk 0:01:04]} 27. Rb3 {[%clk 0:00:55]}  Qc5 {[%clk 0:01:00]} 28. exf5 {[%clk 0:00:54]}  Rxf5 {[%clk 0:01:00]} 29. Rf3 {[%clk 0:00:53]}  Nc3 {[%clk 0:00:42]} 30. Qd3 {[%clk 0:00:51]}  Qxd5 {[%clk 0:00:34]} 31. Qxd5+ {[%clk 0:00:46]}  Rxd5 {[%clk 0:00:29]} 32. Rxc3 {[%clk 0:00:45]}  Rc5 {[%clk 0:00:27]} 33. Re3 {[%clk 0:00:43]}  d5 {[%clk 0:00:19]} 34. Ne7+ {[%clk 0:00:42]}  Kf7 {[%clk 0:00:19]} 35. Bxd5+ {[%clk 0:00:40]}  Rxd5 {[%clk 0:00:15]} 36. Nxd5 {[%clk 0:00:39]}  b5 {[%clk 0:00:16]} 37. Rfe1 {[%clk 0:00:39]}  Bf8 {[%clk 0:00:15]} 38. Rf3+ {[%clk 0:00:39]}  Kg8 {[%clk 0:00:15]} 39. Re8 {[%clk 0:00:40]}  Rf7 {[%clk 0:00:15]} 40. Rxf7 {[%clk 0:00:39]}  Kxf7 {[%clk 0:00:16]} 41. Ra8 {[%clk 0:00:39]}  b4 {[%clk 0:00:15]} 42. Rxa6 {[%clk 0:00:39]}  b3 {[%clk 0:00:11]} 43. Rb6 {[%clk 0:00:39]} 1-0


[Site "https://www.chess.com"]

[Event "Titled Tuesday Blitz August 22 Early 2023"]
[White "Ozalp, Burak"]
[Black "Warchol, Kamil"]
[WhiteFideId "6314210"]
[BlackFideId "21858241"]
[WhiteElo "2373"]
[BlackElo "2510"]
[Result "1-0"]
[Round "5"]
[TimeControl "180+1"]
[Date "2023.08.22"]
[WhiteClock "0:00:16"]
[BlackClock "0:00:00"]
[Board "141"]

1. e4 {[%clk 0:03:00]}  c5 {[%clk 0:02:58]} 2. Nc3 {[%clk 0:03:00]}  a6 {[%clk 0:02:57]} 3. a3 {[%clk 0:02:58]}  b5 {[%clk 0:02:55]} 4. Nf3 {[%clk 0:02:55]}  Bb7 {[%clk 0:02:54]} 5. d4 {[%clk 0:02:56]}  cxd4 {[%clk 0:02:54]} 6. Nxd4 {[%clk 0:02:57]}  e6 {[%clk 0:02:55]} 7. Bd3 {[%clk 0:02:54]}  Qb6 {[%clk 0:02:54]} 8. Nf3 {[%clk 0:02:29]}  Nc6 {[%clk 0:02:40]} 9. O-O {[%clk 0:02:29]}  d6 {[%clk 0:02:33]} 10. Re1 {[%clk 0:02:21]}  Be7 {[%clk 0:02:30]} 11. Be3 {[%clk 0:02:05]}  Qc7 {[%clk 0:02:26]} 12. Nd5 {[%clk 0:02:01]}  exd5 {[%clk 0:02:19]} 13. exd5 {[%clk 0:02:02]}  Ne5 {[%clk 0:02:03]} 14. Nxe5 {[%clk 0:02:02]}  dxe5 {[%clk 0:01:58]} 15. Qg4 {[%clk 0:02:01]}  Nf6 {[%clk 0:01:48]} 16. Qxg7 {[%clk 0:01:46]}  Rg8 {[%clk 0:01:45]} 17. Qh6 {[%clk 0:01:44]}  Bxd5 {[%clk 0:01:42]} 18. g3 {[%clk 0:01:20]}  O-O-O {[%clk 0:01:38]} 19. Bf5+ {[%clk 0:01:13]}  Be6 {[%clk 0:01:31]} 20. Bxe6+ {[%clk 0:01:13]}  fxe6 {[%clk 0:01:32]} 21. Rad1 {[%clk 0:01:12]}  Rxd1 {[%clk 0:01:22]} 22. Rxd1 {[%clk 0:01:10]}  Rd8 {[%clk 0:01:22]} 23. Rxd8+ {[%clk 0:01:10]}  Qxd8 {[%clk 0:01:23]} 24. Qg7 {[%clk 0:01:00]}  Qf8 {[%clk 0:00:59]} 25. Qg5 {[%clk 0:00:55]}  Nd7 {[%clk 0:00:58]} 26. Qh5 {[%clk 0:00:43]}  Qf5 {[%clk 0:00:35]} 27. Qe8+ {[%clk 0:00:42]}  Bd8 {[%clk 0:00:34]} 28. Qg8 {[%clk 0:00:39]}  Qg6 {[%clk 0:00:28]} 29. Qh8 {[%clk 0:00:35]}  Kc7 {[%clk 0:00:21]} 30. c3 {[%clk 0:00:31]}  Nf6 {[%clk 0:00:13]} 31. Qf8 {[%clk 0:00:28]}  Nd7 {[%clk 0:00:11]} 32. Qb4 {[%clk 0:00:26]}  Qb1+ {[%clk 0:00:07]} 33. Kg2 {[%clk 0:00:25]}  Qd3 {[%clk 0:00:07]} 34. a4 {[%clk 0:00:23]}  Qd5+ {[%clk 0:00:07]} 35. Kg1 {[%clk 0:00:22]}  Kb7 {[%clk 0:00:07]} 36. axb5 {[%clk 0:00:21]}  axb5 {[%clk 0:00:08]} 37. b3 {[%clk 0:00:20]}  Bb6 {[%clk 0:00:08]} 38. c4 {[%clk 0:00:20]}  Qd1+ {[%clk 0:00:08]} 39. Kg2 {[%clk 0:00:21]}  Bxe3 {[%clk 0:00:07]} 40. fxe3 {[%clk 0:00:21]}  Qe2+ {[%clk 0:00:07]} 41. Kh3 {[%clk 0:00:21]}  Qxe3 {[%clk 0:00:07]} 42. Qxb5+ {[%clk 0:00:21]}  Nb6 {[%clk 0:00:07]} 43. c5 {[%clk 0:00:20]}  e4 {[%clk 0:00:03]} 44. Qxb6+ {[%clk 0:00:20]}  Kc8 {[%clk 0:00:04]} 45. Qc6+ {[%clk 0:00:20]}  Kb8 {[%clk 0:00:02]} 46. Qb6+ {[%clk 0:00:21]}  Kc8 {[%clk 0:00:02]} 47. Qxe6+ {[%clk 0:00:21]}  Kb8 {[%clk 0:00:03]} 48. Qb6+ {[%clk 0:00:22]}  Kc8 {[%clk 0:00:03]} 49. Qe6+ {[%clk 0:00:20]}  Kb8 {[%clk 0:00:03]} 50. c6 {[%clk 0:00:21]}  Kc7 {[%clk 0:00:02]} 51. Qd7+ {[%clk 0:00:21]}  Kb6 {[%clk 0:00:02]} 52. Qd6 {[%clk 0:00:18]}  Qe2 {[%clk 0:00:02]} 53. c7+ {[%clk 0:00:19]}  Kb5 {[%clk 0:00:02]} 54. Qd5+ {[%clk 0:00:17]}  Kb4 {[%clk 0:00:02]} 55. c8=Q {[%clk 0:00:17]}  Qh5+ {[%clk 0:00:00]} 56. Qxh5 {[%clk 0:00:16]} 1-0


[Site "https://www.chess.com"]